[Event "Titled Tuesday Blitz August 1 Early 2023"]
[White "Ramu, K."]
[Black "Kokoszczynski, Jan"]
[WhiteFideId "5006171"]
[BlackFideId "1174460"]
[WhiteElo "2216"]
[BlackElo "2448"]
[Result "0-1"]
[Round "4"]
[TimeControl "180+1"]
[Date "2023.08.01"]
[WhiteClock "0:00:49"]
[BlackClock "0:01:18"]
[Board "198"]

1. e4 {[%clk 0:03:00]}  e5 {[%clk 0:02:54]} 2. f4 {[%clk 0:03:00]}  Bc5 {[%clk 0:02:51]} 3. Nf3 {[%clk 0:02:57]}  d6 {[%clk 0:02:50]} 4. Bc4 {[%clk 0:02:55]}  Bg4 {[%clk 0:02:40]} 5. h3 {[%clk 0:02:49]}  Bxf3 {[%clk 0:02:34]} 6. Qxf3 {[%clk 0:02:48]}  Qh4+ {[%clk 0:02:35]} 7. g3 {[%clk 0:02:48]}  Qe7 {[%clk 0:02:36]} 8. fxe5 {[%clk 0:02:42]}  dxe5 {[%clk 0:02:34]} 9. Rf1 {[%clk 0:02:40]}  Nf6 {[%clk 0:02:33]} 10. Nc3 {[%clk 0:02:38]}  c6 {[%clk 0:02:33]} 11. g4 {[%clk 0:02:35]}  h6 {[%clk 0:02:33]} 12. d3 {[%clk 0:02:31]}  Nbd7 {[%clk 0:02:29]} 13. h4 {[%clk 0:02:20]}  O-O-O {[%clk 0:02:17]} 14. Bd2 {[%clk 0:02:00]}  Rdf8 {[%clk 0:02:10]} 15. O-O-O {[%clk 0:01:59]}  Ne8 {[%clk 0:02:08]} 16. g5 {[%clk 0:01:45]}  hxg5 {[%clk 0:02:06]} 17. Bxg5 {[%clk 0:01:46]}  f6 {[%clk 0:02:06]} 18. Bd2 {[%clk 0:01:38]}  Rxh4 {[%clk 0:02:03]} 19. Rh1 {[%clk 0:01:35]}  Rfh8 {[%clk 0:01:57]} 20. Rxh4 {[%clk 0:01:24]}  Rxh4 {[%clk 0:01:58]} 21. Rh1 {[%clk 0:01:24]}  Rxh1+ {[%clk 0:01:54]} 22. Qxh1 {[%clk 0:01:25]}  Nd6 {[%clk 0:01:50]} 23. Bb3 {[%clk 0:01:22]}  Kc7 {[%clk 0:01:46]} 24. Na4 {[%clk 0:01:04]}  Nb5 {[%clk 0:01:26]} 25. Nxc5 {[%clk 0:00:58]}  Nxc5 {[%clk 0:01:20]} 26. Bb4 {[%clk 0:00:55]}  Nxb3+ {[%clk 0:01:19]} 27. axb3 {[%clk 0:00:49]}  Qxb4 {[%clk 0:01:18]} 28. Qh7 {[%clk 0:00:49]}  Qe1# {[%clk 0:01:18]} 0-1


[Site "https://www.chess.com"]

[Event "Titled Tuesday Blitz August 1 Early 2023"]
[White "Avazkhonov, Alikhon"]
[Black "De Souza, Cristiano Gomes"]
[WhiteFideId "14208504"]
[BlackFideId "2151758"]
[WhiteElo "2444"]
[BlackElo "2205"]
[Result "0-1"]
[Round "4"]
[TimeControl "180+1"]
[Date "2023.08.01"]
[WhiteClock "0:00:00"]
[BlackClock "0:00:27"]
[Board "200"]

1. d4 {[%clk 0:03:00]}  Nf6 {[%clk 0:02:59]} 2. Nc3 {[%clk 0:03:00]}  g6 {[%clk 0:02:59]} 3. e4 {[%clk 0:02:59]}  d6 {[%clk 0:02:59]} 4. f3 {[%clk 0:02:59]}  c6 {[%clk 0:02:59]} 5. Be3 {[%clk 0:02:59]}  b5 {[%clk 0:02:58]} 6. Qd2 {[%clk 0:02:57]}  b4 {[%clk 0:02:57]} 7. Nd1 {[%clk 0:02:52]}  a5 {[%clk 0:02:58]} 8. Nf2 {[%clk 0:02:51]}  Bg7 {[%clk 0:02:57]} 9. g4 {[%clk 0:02:48]}  h5 {[%clk 0:02:56]} 10. Be2 {[%clk 0:02:44]}  Nbd7 {[%clk 0:02:52]} 11. h4 {[%clk 0:02:43]}  c5 {[%clk 0:02:48]} 12. g5 {[%clk 0:02:41]}  Nh7 {[%clk 0:02:47]} 13. O-O-O {[%clk 0:02:38]}  Qc7 {[%clk 0:02:41]} 14. Kb1 {[%clk 0:02:14]}  c4 {[%clk 0:02:40]} 15. c3 {[%clk 0:01:52]}  Rb8 {[%clk 0:02:35]} 16. Ka1 {[%clk 0:01:49]}  Ba6 {[%clk 0:02:27]} 17. f4 {[%clk 0:01:49]}  O-O {[%clk 0:02:24]} 18. Nf3 {[%clk 0:01:44]}  Rb7 {[%clk 0:02:22]} 19. f5 {[%clk 0:01:33]}  Rfb8 {[%clk 0:02:20]} 20. Rb1 {[%clk 0:01:32]}  Nb6 {[%clk 0:02:16]} 21. e5 {[%clk 0:01:26]}  dxe5 {[%clk 0:02:12]} 22. dxe5 {[%clk 0:01:22]}  Na4 {[%clk 0:01:57]} 23. f6 {[%clk 0:01:19]}  Bf8 {[%clk 0:01:56]} 24. Ne4 {[%clk 0:01:07]}  Qc6 {[%clk 0:01:48]} 25. Ng3 {[%clk 0:00:37]}  exf6 {[%clk 0:01:38]} 26. Nd4 {[%clk 0:00:35]}  Qd7 {[%clk 0:01:29]} 27. gxf6 {[%clk 0:00:34]}  bxc3 {[%clk 0:01:26]} 28. bxc3 {[%clk 0:00:35]}  Rxb1+ {[%clk 0:01:24]} 29. Rxb1 {[%clk 0:00:31]}  Rxb1+ {[%clk 0:01:24]} 30. Kxb1 {[%clk 0:00:32]}  Qh3 {[%clk 0:01:13]} 31. Nf1 {[%clk 0:00:23]}  Qxh4 {[%clk 0:01:11]} 32. Bh6 {[%clk 0:00:23]}  Nxc3+ {[%clk 0:00:55]} 33. Kc2 {[%clk 0:00:21]}  Ne4 {[%clk 0:00:49]} 34. Qe3 {[%clk 0:00:19]}  Nhxf6 {[%clk 0:00:39]} 35. exf6 {[%clk 0:00:18]}  Nxf6 {[%clk 0:00:36]} 36. Bxf8 {[%clk 0:00:17]}  Kxf8 {[%clk 0:00:36]} 37. Qa3+ {[%clk 0:00:15]}  Kg7 {[%clk 0:00:35]} 38. Qe7 {[%clk 0:00:14]}  Qxd4 {[%clk 0:00:34]} 39. Ne3 {[%clk 0:00:00]}  Ne4 {[%clk 0:00:27]} 0-1


[Site "https://www.chess.com"]

[Event "Titled Tuesday Blitz August 1 Early 2023"]
[White "Matyukov, Petr"]
[Black "le-castor-faineant"]
[WhiteFideId "4103688"]
[WhiteElo "2444"]
[BlackElo "2192"]
[Result "1/2-1/2"]
[Round "4"]
[TimeControl "180+1"]
[Date "2023.08.01"]
[WhiteClock "0:01:24"]
[BlackClock "0:02:15"]
[Board "201"]

1. d4 {[%clk 0:02:58]}  Nf6 {[%clk 0:02:59]} 2. c4 {[%clk 0:02:57]}  g6 {[%clk 0:03:00]} 3. h4 {[%clk 0:02:57]}  Bg7 {[%clk 0:03:00]} 4. Nc3 {[%clk 0:02:57]}  O-O {[%clk 0:03:00]} 5. h5 {[%clk 0:02:48]}  Nxh5 {[%clk 0:02:53]} 6. g4 {[%clk 0:02:48]}  Nf6 {[%clk 0:02:52]} 7. g5 {[%clk 0:02:47]}  Nh5 {[%clk 0:02:53]} 8. e4 {[%clk 0:02:48]}  d6 {[%clk 0:02:51]} 9. f4 {[%clk 0:02:44]}  Ng3 {[%clk 0:02:44]} 10. Rh2 {[%clk 0:02:28]}  Nxf1 {[%clk 0:02:44]} 11. Kxf1 {[%clk 0:02:29]}  e5 {[%clk 0:02:34]} 12. f5 {[%clk 0:02:25]}  exd4 {[%clk 0:02:33]} 13. f6 {[%clk 0:02:19]}  dxc3 {[%clk 0:02:32]} 14. fxg7 {[%clk 0:02:18]}  Kxg7 {[%clk 0:02:32]} 15. bxc3 {[%clk 0:02:00]}  f5 {[%clk 0:02:29]} 16. Qd4+ {[%clk 0:01:49]}  Kg8 {[%clk 0:02:26]} 17. Qd5+ {[%clk 0:01:44]}  Kg7 {[%clk 0:02:24]} 18. Qd4+ {[%clk 0:01:38]}  Kg8 {[%clk 0:02:21]} 19. Qd5+ {[%clk 0:01:24]}  Kg7 {[%clk 0:02:15]} 20. Qd4+ {[%clk 0:01:24]} 1/2-1/2


[Site "https://www.chess.com"]

[Event "Titled Tuesday Blitz August 1 Early 2023"]
[White "Butti, Enrique"]
[Black "Zeman, Matyas"]
[WhiteFideId "3700470"]
[BlackFideId "364398"]
[WhiteElo "2178"]
[BlackElo "2439"]
[Result "0-1"]
[Round "4"]
[TimeControl "180+1"]
[Date "2023.08.01"]
[WhiteClock "0:00:33"]
[BlackClock "0:01:20"]
[Board "203"]

1. d4 {[%clk 0:02:58]}  Nf6 {[%clk 0:02:56]} 2. Nf3 {[%clk 0:02:58]}  e6 {[%clk 0:02:55]} 3. e3 {[%clk 0:02:57]}  d5 {[%clk 0:02:55]} 4. Bd3 {[%clk 0:02:57]}  c5 {[%clk 0:02:55]} 5. c3 {[%clk 0:02:56]}  Nc6 {[%clk 0:02:55]} 6. Nbd2 {[%clk 0:02:56]}  Bd6 {[%clk 0:02:54]} 7. O-O {[%clk 0:02:55]}  O-O {[%clk 0:02:55]} 8. Qe2 {[%clk 0:02:53]}  Qc7 {[%clk 0:02:54]} 9. dxc5 {[%clk 0:02:44]}  Bxc5 {[%clk 0:02:55]} 10. e4 {[%clk 0:02:44]}  b6 {[%clk 0:02:40]} 11. e5 {[%clk 0:02:32]}  Ng4 {[%clk 0:02:40]} 12. b4 {[%clk 0:02:28]}  Be7 {[%clk 0:02:32]} 13. Re1 {[%clk 0:02:19]}  f6 {[%clk 0:02:27]} 14. exf6 {[%clk 0:02:14]}  Bxf6 {[%clk 0:02:28]} 15. h3 {[%clk 0:01:53]}  Nge5 {[%clk 0:02:22]} 16. a3 {[%clk 0:01:40]}  Nxd3 {[%clk 0:02:13]} 17. Qxd3 {[%clk 0:01:40]}  a5 {[%clk 0:02:10]} 18. b5 {[%clk 0:01:34]}  Ne7 {[%clk 0:02:10]} 19. Bb2 {[%clk 0:01:32]}  e5 {[%clk 0:02:09]} 20. Qc2 {[%clk 0:01:27]}  Bf5 {[%clk 0:02:05]} 21. Qb3 {[%clk 0:01:25]}  Kh8 {[%clk 0:02:05]} 22. Rac1 {[%clk 0:01:19]}  Rad8 {[%clk 0:01:57]} 23. c4 {[%clk 0:01:16]}  d4 {[%clk 0:01:56]} 24. Ne4 {[%clk 0:01:09]}  Ng6 {[%clk 0:01:38]} 25. c5 {[%clk 0:00:57]}  Bxe4 {[%clk 0:01:28]} 26. Rxe4 {[%clk 0:00:53]}  bxc5 {[%clk 0:01:27]} 27. b6 {[%clk 0:00:52]}  Qb7 {[%clk 0:01:23]} 28. Qc2 {[%clk 0:00:44]}  c4 {[%clk 0:01:20]} 29. Rg4 {[%clk 0:00:33]}  c3 {[%clk 0:01:20]} 0-1


[Site "https://www.chess.com"]

[Event "Titled Tuesday Blitz August 1 Early 2023"]
[White "KorolDimitriy75"]
[Black "Feliz Dotel, Dewar Bienvenido"]
[BlackFideId "6402801"]
[WhiteElo "2427"]
[BlackElo "2124"]
[Result "0-1"]
[Round "4"]
[TimeControl "180+1"]
[Date "2023.08.01"]
[WhiteClock "0:00:12"]
[BlackClock "0:00:15"]
[Board "208"]

1. d4 {[%clk 0:03:00]}  d5 {[%clk 0:02:59]} 2. c4 {[%clk 0:03:01]}  e6 {[%clk 0:02:59]} 3. Nc3 {[%clk 0:03:01]}  c5 {[%clk 0:02:59]} 4. cxd5 {[%clk 0:03:01]}  exd5 {[%clk 0:03:00]} 5. Nf3 {[%clk 0:03:01]}  Nc6 {[%clk 0:03:00]} 6. g3 {[%clk 0:03:01]}  Nf6 {[%clk 0:03:00]} 7. Bg2 {[%clk 0:03:01]}  Be7 {[%clk 0:03:00]} 8. O-O {[%clk 0:03:01]}  O-O {[%clk 0:03:00]} 9. dxc5 {[%clk 0:03:02]}  Bxc5 {[%clk 0:03:00]} 10. Na4 {[%clk 0:03:02]}  Be7 {[%clk 0:02:58]} 11. Be3 {[%clk 0:03:02]}  Ne4 {[%clk 0:02:56]} 12. Rc1 {[%clk 0:03:01]}  h6 {[%clk 0:02:50]} 13. Nd4 {[%clk 0:02:54]}  Nxd4 {[%clk 0:02:43]} 14. Bxd4 {[%clk 0:02:54]}  Be6 {[%clk 0:02:40]} 15. Nc5 {[%clk 0:02:41]}  Nxc5 {[%clk 0:02:27]} 16. Bxc5 {[%clk 0:02:42]}  b6 {[%clk 0:02:13]} 17. Bxe7 {[%clk 0:02:36]}  Qxe7 {[%clk 0:02:13]} 18. Qd4 {[%clk 0:02:24]}  Rac8 {[%clk 0:02:08]} 19. e3 {[%clk 0:01:48]}  Qd7 {[%clk 0:01:56]} 20. Rfd1 {[%clk 0:01:27]}  Qb5 {[%clk 0:01:50]} 21. Qd2 {[%clk 0:01:07]}  Rfd8 {[%clk 0:01:40]} 22. b3 {[%clk 0:01:02]}  Qa6 {[%clk 0:01:00]} 23. h3 {[%clk 0:00:55]}  Rxc1 {[%clk 0:00:58]} 24. Rxc1 {[%clk 0:00:55]}  Rc8 {[%clk 0:00:58]} 25. Rxc8+ {[%clk 0:00:52]}  Qxc8 {[%clk 0:00:57]} 26. Kh2 {[%clk 0:00:48]}  Qc5 {[%clk 0:00:55]} 27. Bf3 {[%clk 0:00:43]}  b5 {[%clk 0:00:52]} 28. Kg2 {[%clk 0:00:43]}  b4 {[%clk 0:00:51]} 29. Qd4 {[%clk 0:00:39]}  Qxd4 {[%clk 0:00:46]} 30. exd4 {[%clk 0:00:39]}  Kf8 {[%clk 0:00:45]} 31. g4 {[%clk 0:00:29]}  Ke7 {[%clk 0:00:44]} 32. Kf1 {[%clk 0:00:27]}  Kd6 {[%clk 0:00:44]} 33. Ke2 {[%clk 0:00:27]}  g5 {[%clk 0:00:44]} 34. Kd2 {[%clk 0:00:26]}  f5 {[%clk 0:00:35]} 35. Be2 {[%clk 0:00:22]}  Bd7 {[%clk 0:00:30]} 36. f3 {[%clk 0:00:19]}  fxg4 {[%clk 0:00:22]} 37. fxg4 {[%clk 0:00:18]}  Be8 {[%clk 0:00:22]} 38. Bd3 {[%clk 0:00:18]}  a5 {[%clk 0:00:21]} 39. Ke3 {[%clk 0:00:17]}  h5 {[%clk 0:00:19]} 40. Be2 {[%clk 0:00:17]}  hxg4 {[%clk 0:00:19]} 41. hxg4 {[%clk 0:00:15]}  Bg6 {[%clk 0:00:16]} 42. Bd3 {[%clk 0:00:15]}  Be8 {[%clk 0:00:14]} 43. Kf3 {[%clk 0:00:15]}  Bd7 {[%clk 0:00:14]} 44. Bc2 {[%clk 0:00:13]}  Bb5 {[%clk 0:00:13]} 45. Bf5 {[%clk 0:00:13]}  a4 {[%clk 0:00:12]} 46. Ke3 {[%clk 0:00:12]}  axb3 {[%clk 0:00:12]} 47. axb3 {[%clk 0:00:13]}  Bf1 {[%clk 0:00:12]} 48. Kd2 {[%clk 0:00:12]}  Bg2 {[%clk 0:00:12]} 49. Kc2 {[%clk 0:00:12]}  Be4+ {[%clk 0:00:10]} 50. Kd2 {[%clk 0:00:11]}  Bxf5 {[%clk 0:00:10]} 51. gxf5 {[%clk 0:00:11]}  Ke7 {[%clk 0:00:10]} 52. Ke3 {[%clk 0:00:11]}  Kf6 {[%clk 0:00:11]} 53. Kf3 {[%clk 0:00:12]}  Kxf5 {[%clk 0:00:11]} 54. Kg3 {[%clk 0:00:12]}  Ke4 {[%clk 0:00:12]} 55. Kg4 {[%clk 0:00:12]}  Kxd4 {[%clk 0:00:12]} 56. Kxg5 {[%clk 0:00:13]}  Kc3 {[%clk 0:00:13]} 57. Kf5 {[%clk 0:00:14]}  Kxb3 {[%clk 0:00:13]} 58. Ke5 {[%clk 0:00:15]}  Kc4 {[%clk 0:00:14]} 59. Kd6 {[%clk 0:00:12]}  d4 {[%clk 0:00:15]} 0-1


[Site "https://www.chess.com"]

[Event "Titled Tuesday Blitz August 1 Early 2023"]
[White "Slayyy_200"]
[Black "Fernandez Garcia, Gumersindo"]
[BlackFideId "24516740"]
[WhiteElo "2049"]
[BlackElo "2423"]
[Result "0-1"]
[Round "4"]
[TimeControl "180+1"]
[Date "2023.08.01"]
[WhiteClock "0:00:07"]
[BlackClock "0:01:17"]
[Board "211"]

1. e4 {[%clk 0:03:00]}  Nf6 {[%clk 0:02:49]} 2. e5 {[%clk 0:03:00]}  Nd5 {[%clk 0:02:49]} 3. d4 {[%clk 0:03:00]}  d6 {[%clk 0:02:49]} 4. c4 {[%clk 0:03:00]}  Nb6 {[%clk 0:02:50]} 5. Nf3 {[%clk 0:02:57]}  g6 {[%clk 0:02:49]} 6. Nc3 {[%clk 0:02:55]}  Bg7 {[%clk 0:02:49]} 7. Bf4 {[%clk 0:02:56]}  O-O {[%clk 0:02:47]} 8. h3 {[%clk 0:02:49]}  Bf5 {[%clk 0:02:45]} 9. Be2 {[%clk 0:02:47]}  Nc6 {[%clk 0:02:35]} 10. O-O {[%clk 0:02:42]}  dxe5 {[%clk 0:02:29]} 11. dxe5 {[%clk 0:02:18]}  Qxd1 {[%clk 0:02:06]} 12. Rfxd1 {[%clk 0:02:14]}  a6 {[%clk 0:02:03]} 13. Nd5 {[%clk 0:02:08]}  Nxd5 {[%clk 0:01:56]} 14. cxd5 {[%clk 0:02:07]}  Nd8 {[%clk 0:01:47]} 15. Rac1 {[%clk 0:02:03]}  c6 {[%clk 0:01:46]} 16. Bc4 {[%clk 0:01:19]}  Be4 {[%clk 0:01:29]} 17. dxc6 {[%clk 0:00:54]}  Bxf3 {[%clk 0:01:27]} 18. gxf3 {[%clk 0:00:43]}  Nxc6 {[%clk 0:01:26]} 19. Rd7 {[%clk 0:00:40]}  Bxe5 {[%clk 0:01:19]} 20. Bxe5 {[%clk 0:00:13]}  Nxe5 {[%clk 0:01:20]} 21. Rxb7 {[%clk 0:00:12]}  Rac8 {[%clk 0:01:18]} 22. Rxe7 {[%clk 0:00:07]}  Nxc4 {[%clk 0:01:17]} 0-1


[Site "https://www.chess.com"]

[Event "Titled Tuesday Blitz August 1 Early 2023"]
[White "Osiecki, Stanislaw"]
[Black "Cheer_Down"]
[WhiteFideId "1102990"]
[WhiteElo "2021"]
[BlackElo "2420"]
[Result "0-1"]
[Round "4"]
[TimeControl "180+1"]
[Date "2023.08.01"]
[WhiteClock "0:00:00"]
[BlackClock "0:00:57"]
[Board "212"]

1. e4 {[%clk 0:03:00]}  c5 {[%clk 0:02:46]} 2. c3 {[%clk 0:03:00]}  Nf6 {[%clk 0:02:44]} 3. e5 {[%clk 0:02:59]}  Nd5 {[%clk 0:02:44]} 4. d4 {[%clk 0:03:00]}  cxd4 {[%clk 0:02:44]} 5. Nf3 {[%clk 0:03:01]}  Nc6 {[%clk 0:02:41]} 6. cxd4 {[%clk 0:03:02]}  d6 {[%clk 0:02:41]} 7. Bc4 {[%clk 0:03:00]}  dxe5 {[%clk 0:02:39]} 8. dxe5 {[%clk 0:02:58]}  Ndb4 {[%clk 0:02:39]} 9. Qxd8+ {[%clk 0:02:55]}  Nxd8 {[%clk 0:02:38]} 10. Bb5+ {[%clk 0:02:55]}  Ndc6 {[%clk 0:02:34]} 11. Bxc6+ {[%clk 0:02:54]}  Nxc6 {[%clk 0:02:32]} 12. O-O {[%clk 0:02:53]}  Bg4 {[%clk 0:02:31]} 13. Bf4 {[%clk 0:02:51]}  e6 {[%clk 0:02:13]} 14. Nbd2 {[%clk 0:02:50]}  O-O-O {[%clk 0:02:11]} 15. Rac1 {[%clk 0:02:28]}  Kb8 {[%clk 0:02:09]} 16. Ne4 {[%clk 0:02:16]}  Bxf3 {[%clk 0:02:02]} 17. gxf3 {[%clk 0:02:15]}  Nd4 {[%clk 0:02:01]} 18. Kg2 {[%clk 0:01:22]}  Ne2 {[%clk 0:01:59]} 19. Bg5 {[%clk 0:01:22]}  Nxc1 {[%clk 0:01:41]} 20. Bxd8 {[%clk 0:01:21]}  Nd3 {[%clk 0:01:41]} 21. Ng5 {[%clk 0:01:05]}  Nxe5 {[%clk 0:01:39]} 22. f4 {[%clk 0:01:02]}  h6 {[%clk 0:01:24]} 23. fxe5 {[%clk 0:00:59]}  hxg5 {[%clk 0:01:24]} 24. Bxg5 {[%clk 0:00:59]}  Bc5 {[%clk 0:01:14]} 25. Rd1 {[%clk 0:00:53]}  Rc8 {[%clk 0:01:12]} 26. Rd7 {[%clk 0:00:47]}  Rc7 {[%clk 0:01:12]} 27. Rxc7 {[%clk 0:00:45]}  Kxc7 {[%clk 0:01:12]} 28. Bf4 {[%clk 0:00:29]}  Kc6 {[%clk 0:01:10]} 29. Kf3 {[%clk 0:00:28]}  Kd5 {[%clk 0:01:10]} 30. Bg3 {[%clk 0:00:22]}  Bd4 {[%clk 0:01:09]} 31. b3 {[%clk 0:00:21]}  Bxe5 {[%clk 0:01:09]} 32. Bh4 {[%clk 0:00:21]}  f5 {[%clk 0:01:07]} 33. h3 {[%clk 0:00:20]}  b5 {[%clk 0:01:06]} 34. Be7 {[%clk 0:00:18]}  g6 {[%clk 0:01:05]} 35. Ke3 {[%clk 0:00:13]}  a6 {[%clk 0:01:01]} 36. f4 {[%clk 0:00:08]}  Bc7 {[%clk 0:01:00]} 37. Bf6 {[%clk 0:00:03]}  Bb6+ {[%clk 0:00:57]} 38. Kd3 {[%clk 0:00:00]}  Bc7 {[%clk 0:00:57]} 0-1


[Site "https://www.chess.com"]

[Event "Titled Tuesday Blitz August 1 Early 2023"]
[White "WindWhistler11"]
[Black "Lohani, Sujana"]
[BlackFideId "12311987"]
[WhiteElo "2419"]
[BlackElo "1947"]
[Result "1-0"]
[Round "4"]
[TimeControl "180+1"]
[Date "2023.08.01"]
[WhiteClock "0:01:00"]
[BlackClock "0:00:00"]
[Board "213"]

1. Nf3 {[%clk 0:03:00]}  c6 {[%clk 0:02:57]} 2. c4 {[%clk 0:03:00]}  d5 {[%clk 0:02:57]} 3. e3 {[%clk 0:02:59]}  Nf6 {[%clk 0:02:55]} 4. Qc2 {[%clk 0:02:59]}  g6 {[%clk 0:02:44]} 5. cxd5 {[%clk 0:02:48]}  cxd5 {[%clk 0:02:43]} 6. Ne5 {[%clk 0:02:41]}  Bg7 {[%clk 0:02:41]} 7. Bb5+ {[%clk 0:02:40]}  Nbd7 {[%clk 0:02:40]} 8. f4 {[%clk 0:02:32]}  O-O {[%clk 0:02:39]} 9. Nf3 {[%clk 0:02:22]}  a6 {[%clk 0:02:34]} 10. Be2 {[%clk 0:02:19]}  b5 {[%clk 0:02:28]} 11. b3 {[%clk 0:02:14]}  Bb7 {[%clk 0:02:27]} 12. Bb2 {[%clk 0:02:14]}  Rc8 {[%clk 0:02:26]} 13. Qd1 {[%clk 0:02:15]}  Nc5 {[%clk 0:02:16]} 14. O-O {[%clk 0:02:05]}  Nce4 {[%clk 0:02:15]} 15. b4 {[%clk 0:01:54]}  Nd6 {[%clk 0:01:56]} 16. d3 {[%clk 0:01:51]}  Nf5 {[%clk 0:01:55]} 17. Qd2 {[%clk 0:01:50]}  Qb6 {[%clk 0:01:53]} 18. Nd4 {[%clk 0:01:46]}  Nd6 {[%clk 0:01:34]} 19. Nb3 {[%clk 0:01:43]}  e6 {[%clk 0:01:32]} 20. Bd4 {[%clk 0:01:41]}  Qd8 {[%clk 0:01:28]} 21. Qb2 {[%clk 0:01:41]}  Nf5 {[%clk 0:01:26]} 22. Nc5 {[%clk 0:01:35]}  Rc7 {[%clk 0:01:18]} 23. Be5 {[%clk 0:01:32]}  Re7 {[%clk 0:01:00]} 24. Bxf6 {[%clk 0:01:29]}  Bxf6 {[%clk 0:00:50]} 25. Qxf6 {[%clk 0:01:30]}  Nxe3 {[%clk 0:00:50]} 26. Nd2 {[%clk 0:01:24]}  d4 {[%clk 0:00:39]} 27. Bf3 {[%clk 0:01:15]}  Bxf3 {[%clk 0:00:33]} 28. Nxf3 {[%clk 0:01:16]}  Nc2 {[%clk 0:00:17]} 29. Rab1 {[%clk 0:01:12]}  Rfe8 {[%clk 0:00:09]} 30. Qh4 {[%clk 0:01:10]}  Qd5 {[%clk 0:00:09]} 31. Ng5 {[%clk 0:01:04]}  h5 {[%clk 0:00:07]} 32. Nge4 {[%clk 0:01:04]}  Qf5 {[%clk 0:00:01]} 33. Nd6 {[%clk 0:01:01]}  Kg7 {[%clk 0:00:02]} 34. Nxf5+ {[%clk 0:01:00]}  exf5 {[%clk 0:00:00]} 35. Rbc1 {[%clk 0:01:00]} 1-0


[Site "https://www.chess.com"]

[Event "Titled Tuesday Blitz August 1 Early 2023"]
[White "Necromon"]
[Black "Mishra, Manoj"]
[BlackFideId "5006007"]
[WhiteElo "2442"]
[BlackElo "2233"]
[Result "1-0"]
[Round "4"]
[TimeControl "180+1"]
[Date "2023.08.01"]
[WhiteClock "0:00:24"]
[BlackClock "0:00:16"]
[Board "216"]

1. Nf3 {[%clk 0:03:00]}  Nf6 {[%clk 0:02:55]} 2. b3 {[%clk 0:03:00]}  g6 {[%clk 0:02:54]} 3. Bb2 {[%clk 0:03:00]}  Bg7 {[%clk 0:02:55]} 4. c4 {[%clk 0:03:01]}  O-O {[%clk 0:02:56]} 5. g3 {[%clk 0:03:01]}  d6 {[%clk 0:02:49]} 6. Bg2 {[%clk 0:03:02]}  e5 {[%clk 0:02:49]} 7. d3 {[%clk 0:03:02]}  c5 {[%clk 0:02:48]} 8. O-O {[%clk 0:03:02]}  Nc6 {[%clk 0:02:48]} 9. Nc3 {[%clk 0:03:01]}  Rb8 {[%clk 0:02:43]} 10. e3 {[%clk 0:02:49]}  a6 {[%clk 0:02:40]} 11. d4 {[%clk 0:02:33]}  Bg4 {[%clk 0:02:30]} 12. dxe5 {[%clk 0:02:11]}  dxe5 {[%clk 0:02:29]} 13. h3 {[%clk 0:02:08]}  Bf5 {[%clk 0:02:13]} 14. Nd5 {[%clk 0:01:54]}  e4 {[%clk 0:01:06]} 15. Nh4 {[%clk 0:01:27]}  Nxd5 {[%clk 0:00:56]} 16. Bxg7 {[%clk 0:01:26]}  Kxg7 {[%clk 0:00:52]} 17. Nxf5+ {[%clk 0:01:26]}  gxf5 {[%clk 0:00:51]} 18. cxd5 {[%clk 0:01:26]}  Nb4 {[%clk 0:00:47]} 19. d6 {[%clk 0:01:25]}  Qd7 {[%clk 0:00:46]} 20. Qh5 {[%clk 0:01:19]}  Rbd8 {[%clk 0:00:44]} 21. Rfd1 {[%clk 0:01:00]}  Qe6 {[%clk 0:00:44]} 22. Bf1 {[%clk 0:00:55]}  h6 {[%clk 0:00:41]} 23. Rac1 {[%clk 0:00:48]}  b6 {[%clk 0:00:38]} 24. a3 {[%clk 0:00:48]}  Nc6 {[%clk 0:00:37]} 25. b4 {[%clk 0:00:47]}  Ne5 {[%clk 0:00:36]} 26. bxc5 {[%clk 0:00:44]}  Nf3+ {[%clk 0:00:35]} 27. Kg2 {[%clk 0:00:44]}  bxc5 {[%clk 0:00:35]} 28. Rxc5 {[%clk 0:00:43]}  Rxd6 {[%clk 0:00:33]} 29. Rxd6 {[%clk 0:00:43]}  Qxd6 {[%clk 0:00:34]} 30. Qxf5 {[%clk 0:00:43]}  Ne1+ {[%clk 0:00:33]} 31. Kh1 {[%clk 0:00:42]}  Qg6 {[%clk 0:00:30]} 32. Qxg6+ {[%clk 0:00:31]}  fxg6 {[%clk 0:00:31]} 33. Rc1 {[%clk 0:00:31]}  Nf3 {[%clk 0:00:27]} 34. Be2 {[%clk 0:00:29]}  Nd2 {[%clk 0:00:26]} 35. Kg2 {[%clk 0:00:28]}  Rf7 {[%clk 0:00:25]} 36. Bxa6 {[%clk 0:00:27]}  Ra7 {[%clk 0:00:24]} 37. Rc6 {[%clk 0:00:27]}  Nb3 {[%clk 0:00:22]} 38. a4 {[%clk 0:00:27]}  Na5 {[%clk 0:00:22]} 39. Rd6 {[%clk 0:00:26]}  Nb3 {[%clk 0:00:20]} 40. Bb5 {[%clk 0:00:25]}  Nc5 {[%clk 0:00:20]} 41. Rd4 {[%clk 0:00:24]}  Kf6 {[%clk 0:00:20]} 42. Rd6+ {[%clk 0:00:24]}  Ke5 {[%clk 0:00:18]} 43. Rxg6 {[%clk 0:00:24]}  h5 {[%clk 0:00:19]} 44. Rh6 {[%clk 0:00:24]}  Ne6 {[%clk 0:00:18]} 45. Rxh5+ {[%clk 0:00:24]}  Kd6 {[%clk 0:00:18]} 46. Rh6 {[%clk 0:00:24]}  Rg7 {[%clk 0:00:16]} 47. Bc4 {[%clk 0:00:24]} 1-0


[Site "https://www.chess.com"]

[Event "Titled Tuesday Blitz August 1 Early 2023"]
[White "Amanov, Zhanibek"]
[Black "Putri, Regita Desyari"]
[WhiteFideId "13700189"]
[BlackFideId "7109083"]
[WhiteElo "2386"]
[BlackElo "2226"]
[Result "0-1"]
[Round "4"]
[TimeControl "180+1"]
[Date "2023.08.01"]
[WhiteClock "0:00:00"]
[BlackClock "0:00:23"]
[Board "218"]

1. e4 {[%clk 0:03:00]}  e5 {[%clk 0:03:00]} 2. Nf3 {[%clk 0:03:01]}  Nc6 {[%clk 0:03:00]} 3. Bc4 {[%clk 0:03:01]}  Bc5 {[%clk 0:03:00]} 4. c3 {[%clk 0:03:01]}  Nf6 {[%clk 0:03:00]} 5. d4 {[%clk 0:03:01]}  exd4 {[%clk 0:03:01]} 6. e5 {[%clk 0:03:02]}  d5 {[%clk 0:03:01]} 7. Bb5 {[%clk 0:03:01]}  Ne4 {[%clk 0:03:01]} 8. cxd4 {[%clk 0:03:02]}  Bb6 {[%clk 0:02:58]} 9. Nc3 {[%clk 0:02:51]}  O-O {[%clk 0:02:58]} 10. O-O {[%clk 0:02:50]}  Bg4 {[%clk 0:02:56]} 11. Be3 {[%clk 0:02:28]}  f6 {[%clk 0:02:19]} 12. Qb3 {[%clk 0:02:03]}  Nxc3 {[%clk 0:02:18]} 13. Qxc3 {[%clk 0:01:54]}  Bxf3 {[%clk 0:02:16]} 14. gxf3 {[%clk 0:01:48]}  fxe5 {[%clk 0:02:04]} 15. dxe5 {[%clk 0:01:30]}  Rxf3 {[%clk 0:01:45]} 16. Kg2 {[%clk 0:01:01]}  Rf8 {[%clk 0:00:49]} 17. Bxc6 {[%clk 0:00:45]}  bxc6 {[%clk 0:00:47]} 18. Bxb6 {[%clk 0:00:25]}  axb6 {[%clk 0:00:43]} 19. Kh1 {[%clk 0:00:10]}  c5 {[%clk 0:00:38]} 20. e6 {[%clk 0:00:02]}  d4 {[%clk 0:00:34]} 21. Qg3 {[%clk 0:00:02]}  Qd5+ {[%clk 0:00:31]} 22. f3 {[%clk 0:00:02]}  Qxe6 {[%clk 0:00:28]} 23. Rae1 {[%clk 0:00:01]}  Qf7 {[%clk 0:00:25]} 24. Rg1 {[%clk 0:00:00]}  Rae8 {[%clk 0:00:23]} 0-1


[Site "https://www.chess.com"]